Workbook

Sheet Sheet1
A1: MMF | D1: PM Checks
A3: "X"
A5: Undulator | B5: SN 13
A6: Date: | B6: 2016-01-08
A7: Crew: | B7: HI, BR
A9: BUCK IN
A10: Far Value | B10: 0 | C10: PM1 X1
A11: Near Value | B11: 0 | C11: PM 4 X1 | F11: =D18+3.602 -> 13.699
A12: 1st Far | B12: 31 | D12: 14+1
A13: 1st. Near | B13: 30.103 | D13: 10.509+1 | F13: Far Blade | G13: 3.513
A14: 2nd. Far | B14: 28 | D14: 8+1 | F14: Near Blade
A15: 2nd Near | B15: 29.244 | D15: 8.781+1
A16: Far Should Read | B16: =BuckIn(B10,B11,B12,B13,B14,B15) -> 29.7431107 | D16: 10.097-1 | F16: Buck in | G16: 18.6
A17: Near Should Read | B17: 29.7431107
A18: LOS | B18: 29.7431107 | D18: 10.097
G19: =G16-G13 -> 15.087
A20: Undulator | G20: =D18-G19 -> -4.99
A23: 1) | B23: 2) | C23: 3) | D23: 4)
A24: 33.847 | B24: 33.843 | C24: 33.849 | D24: 33.854
A25: 1 | B25: 1 | C25: 1 | D25: 1
A26: =SUM(A24:A25) -> 34.847 | B26: =SUM(B24:B25) -> 34.843 | C26: =SUM(C24:C25) -> 34.849 | D26: =SUM(D24:D25) -> 34.854
A27: =B18 -> 29.7431107 | B27: =B18 -> 29.7431107 | C27: =B18 -> 29.7431107 | D27: =B18 -> 29.7431107
A28: =SUM(A27-A26) -> -5.103889304 | B28: =SUM(B27-B26) -> -5.099889304 | C28: =SUM(C27-C26) -> -5.105889304 | D28: =SUM(D27-D26) -> -5.110889304
A30: 5) | B30: 6) | C30: 7) | D30: 8)
A31: 24.062 | B31: 24.065 | C31: 24.066 | D31: 24.068
A32: 1 | B32: 1 | C32: 1 | D32: 1
A33: =SUM(A31:A32) -> 25.062 | B33: =SUM(B31:B32) -> 25.065 | C33: =SUM(C31:C32) -> 25.066 | D33: =SUM(D31:D32) -> 25.068
A34: =B18 -> 29.7431107 | B34: =B18 -> 29.7431107 | C34: =B18 -> 29.7431107 | D34: =B18 -> 29.7431107
A35: =SUM(A34-A33) -> 4.681110696 | B35: =SUM(B34-B33) -> 4.678110696 | C35: =SUM(C34-C33) -> 4.677110696 | D35: =SUM(D34-D33) -> 4.675110696
B38: Reference | C38: Block
A40: A) | B40: B) | C40: C) | D40: D)
A42: 1 | B42: 1 | C42: 1 | D42: 1
A43: =SUM(A41:A42) -> 1 | B43: =SUM(B41:B42) -> 1 | C43: =SUM(C41:C42) -> 1 | D43: =SUM(D41:D42) -> 1
A44: =B18 -> 29.7431107 | B44: =B18 -> 29.7431107 | C44: =B18 -> 29.7431107 | D44: =B18 -> 29.7431107
A45: =SUM(A44-A43) -> 28.7431107 | B45: =SUM(B44-B43) -> 28.7431107 | C45: =SUM(C44-C43) -> 28.7431107 | D45: =SUM(D44-D43) -> 28.7431107
A51: MMF | D51: PM Checks
A53: "X"
A55: =B18 -> 29.7431107 | B55: LOS
A56: Undulator | B56: =B5 -> SN 13
A57: Date: | B57: =B6 -> 2016-01-08
A58: Crew: | B58: =B7 -> HI, BR
B61: PM4
A63: X1) Buck In | B63: Y1) | C63: Y2)
B64: 32.345 | C64: 32.346
B65: 1 | C65: 1
B66: =SUM(B64:B65) -> 33.345 | C66: =SUM(C64:C65) -> 33.346
B67: =B18 -> 29.7431107 | C67: =B18 -> 29.7431107
A68: 0 | B68: =SUM(B67-B66) -> -3.601889304 | C68: =SUM(C67-C66) -> -3.602889304
B71: PM3
A73: X1) | B73: Y1) | C73: Y2)
A74: 30.246 | B74: 33.84 | C74: 33.845
A75: 1 | B75: 1 | C75: 1
A76: =SUM(A74:A75) -> 31.246 | B76: =SUM(B74:B75) -> 34.84 | C76: =SUM(C74:C75) -> 34.845
A77: =B18 -> 29.7431107 | B77: =B18 -> 29.7431107 | C77: =B18 -> 29.7431107
A78: =SUM(A77-A76) -> -1.502889304 | B78: =SUM(B77-B76) -> -5.096889304 | C78: =SUM(C77-C76) -> -5.101889304
B81: PM 2
A82: X1) | B82: Y1) | C82: Y2)
A83: 30.245 | B83: 33.843 | C83: 33.842
A84: 1 | B84: 1 | C84: 1
A85: =SUM(A83:A84) -> 31.245 | B85: =SUM(B83:B84) -> 34.843 | C85: =SUM(C83:C84) -> 34.842
A86: =B18 -> 29.7431107 | B86: =B18 -> 29.7431107 | C86: =B18 -> 29.7431107
A87: =SUM(A86-A85) -> -1.501889304 | B87: =SUM(B86-B85) -> -5.099889304 | C87: =SUM(C86-C85) -> -5.098889304
B90: PM1
A91: X1) Buck In | B91: Y1) | C91: Y2)
B92: 32.344 | C92: 32.343
B93: 1 | C93: 1
B94: =SUM(B92:B93) -> 33.344 | C94: =SUM(C92:C93) -> 33.343
B95: =B18 -> 29.7431107 | C95: =B18 -> 29.7431107
A96: 0 | B96: =SUM(B95-B94) -> -3.600889304 | C96: =SUM(C95-C94) -> -3.599889304
A101: MMF | D101: PM Checks
A103: "Y" | C103: PM4Y1 | D103: PM1Y1
C104: 5.204 | D104: 5.204
C105: 1 | D105: 1
A106: Undulator | B106: =B5 -> SN 13 | C106: =SUM(C104+C105) -> 6.204 | D106: =SUM(D104+D105) -> 6.204
A107: Date: | B107: =B6 -> 2016-01-08
A108: Crew: | B108: =B7 -> HI, BR
C109: HI = | D109: =AVERAGE(C106,D106) -> 6.204
A111: PM4 | C111: PM3
A113: Y1) | B113: X1) | C113: Y2) | D113: X1
A114: =C104 -> 5.204 | B114: 8.808 | C114: 5.219 | D114: 8.819
A115: 1 | B115: 1 | C115: 1 | D115: 1
A116: =SUM(A114:A115) -> 6.204 | B116: =SUM(B114:B115) -> 9.808 | C116: =SUM(C114:C115) -> 6.219 | D116: =SUM(D114:D115) -> 9.819
A117: =D109 -> 6.204 | B117: =D109 -> 6.204 | C117: =D109 -> 6.204 | D117: =D109 -> 6.204
A118: =SUM(A117-A116) -> 0 | B118: =SUM(B117-B116) -> -3.604 | C118: =SUM(C117-C116) -> -0.015 | D118: =SUM(D117-D116) -> -3.615
A121: PM2 | C121: PM1
A123: Y1) | B123: X1) | C123: Y1) | D123: X1)
A124: 5.211 | B124: 8.811 | C124: =D104 -> 5.204 | D124: 8.808
A125: 1 | B125: 1 | C125: 1 | D125: 1
A126: =SUM(A124:A125) -> 6.211 | B126: =SUM(B124:B125) -> 9.811 | C126: =SUM(C124:C125) -> 6.204 | D126: =SUM(D124:D125) -> 9.808
A127: =D109 -> 6.204 | B127: =D109 -> 6.204 | C127: =D109 -> 6.204 | D127: =D109 -> 6.204
A128: =SUM(A127-A126) -> -0.007 | B128: =SUM(B127-B126) -> -3.607 | C128: =SUM(C127-C126) -> 0 | D128: =SUM(D127-D126) -> -3.604
A135: Top Of Gage Block | C135: Probe Location in (X)
A137: 10.616 | C137: -4.99 | D137: LOS
A138: =D109 -> 6.204 | C138: -0.037 | D138: Mic To Plus Edge
A139: =SUM(A138-A137) -> -4.412 | C139: =SUM(C137+C138) -> -5.027
C140: -0.039
A141: 1.443 | C141: =(C139+C140) -> -5.066 | D141: Probe Location
A142: 2.251
A143: =A141-A142 -> -0.808
A144: =A143+B136 -> -0.808
A145: =A138-A144 -> 7.012
A151: MMF | D151: PM Checks
A153: "Y"
A155: Undulator | B155: =B5 -> SN 13
A156: Date: | B156: 2016-01-08
A157: Crew: | B157: =B7 -> HI, BR
A160: HI = | B160: =D109 -> 6.204
A162: Undulator
A164: 1) | B164: 2) | C164: 3) | D164: 4)
A165: 1.73 | B165: 1.729 | C165: 1.73 | D165: 1.727
A166: 1 | B166: 1 | C166: 1 | D166: 1
A167: =SUM(A165:A166) -> 2.73 | B167: =SUM(B165:B166) -> 2.729 | C167: =SUM(C165:C166) -> 2.73 | D167: =SUM(D165:D166) -> 2.727
A168: =D109 -> 6.204 | B168: =D109 -> 6.204 | C168: =D109 -> 6.204 | D168: =D109 -> 6.204
A169: =SUM(A168-A167) -> 3.474 | B169: =SUM(B168-B167) -> 3.475 | C169: =SUM(C168-C167) -> 3.474 | D169: =SUM(D168-D167) -> 3.477
A172: 5) | B172: 6) | C172: 7) | D172: 8)
A173: 8.809 | B173: 8.815 | C173: 8.812 | D173: 8.814
A174: 1 | B174: 1 | C174: 1 | D174: 1
A175: =SUM(A173+A174) -> 9.809 | B175: =SUM(B173+B174) -> 9.815 | C175: =SUM(C173+C174) -> 9.812 | D175: =SUM(D173+D174) -> 9.814
A176: =D109 -> 6.204 | B176: =D109 -> 6.204 | C176: =D109 -> 6.204 | D176: =D109 -> 6.204
A177: =SUM(A176-A175) -> -3.605 | B177: =SUM(B176-B175) -> -3.611 | C177: =SUM(C176-C175) -> -3.608 | D177: =SUM(D176-D175) -> -3.61
A181: Reference Block
A183: A) | B183: B) | C183: C) | D183: D)
A185: 1 | C185: 1 | D185: 1
A186: =SUM(A184+A185) ->  | C186: =SUM(C184+C185) ->  | D186: =SUM(D184+D185) -> 
A187: =D109 -> 6.204 | C187: =D109 -> 6.204 | D187: =D109 -> 6.204
A188: =SUM(A187-A186) ->  | B188: 0 | C188: =SUM(C187-C186) ->  | D188: =SUM(D187-D186) -> 
A191: Flats
A193: U/S | C193: D/S
A194: (+) | B194: (-) | C194: (+) | D194: (-)
A195: 4.502 | B195: 4.504 | C195: 4.495 | D195: 4.496
A196: =D109 -> 6.204 | B196: =D109 -> 6.204 | C196: =D109 -> 6.204 | D196: =D109 -> 6.204
A197: 1.704 | B197: 1.703 | C197: =SUM(C196-C195) -> 1.709 | D197: =SUM(D196-D195) -> 1.708

Sheet Sheet2
A2: Undulator | C2: =Sheet1!B5 -> SN 13
A3: Date | C3: =Sheet1!B6 -> 2016-01-08
A4: Crew | C4: =Sheet1!B7 -> HI, BR
A7: Undulator Values
A9: TB | B9: Y (in) | C9: Y (mm) | F9: TB | G9: X (in) | H9: X (mm)
A10: 1 | B10: =Sheet1!A169 -> 3.474 | C10: =B10*25.4 -> 88.2396 | F10: 5 | G10: =Sheet1!A35 -> 4.681110696 | H10: =G10*25.4 -> 118.9002117
A11: 2 | B11: =Sheet1!B169 -> 3.475 | C11: =B11*25.4 -> 88.265 | F11: 6 | G11: =Sheet1!B35 -> 4.678110696 | H11: =G11*25.4 -> 118.8240117
A12: 3 | B12: =Sheet1!C169 -> 3.474 | C12: =B12*25.4 -> 88.2396 | F12: 7 | G12: =Sheet1!C35 -> 4.677110696 | H12: =G12*25.4 -> 118.7986117
A13: 4 | B13: =Sheet1!D169 -> 3.477 | C13: =B13*25.4 -> 88.3158 | F13: 8 | G13: =Sheet1!D35 -> 4.675110696 | H13: =G13*25.4 -> 118.7478117
A16: PM Values
C18: Upstream | E18: (PM 3) | G18: Checks
A19: TB | B19: X (in) | C19: Y (in) | D19: X (mm) | E19: Y (mm) | G19: X (mm) | H19: Y (mm)
A20: Y2 | B20: =Sheet1!C78 -> -5.101889304 | C20: =Sheet1!C118 -> -0.015 | D20: =B20*25.4 -> -129.5879883 | E20: =C20*25.4 -> -0.381 | G20: =H10-D21 -> 157.0736 | H20: =C10-E20 -> 88.6206
A21: X1 | B21: =Sheet1!A78 -> -1.502889304 | C21: =Sheet1!D118 -> -3.615 | D21: =B21*25.4 -> -38.17338832 | E21: =C21*25.4 -> -91.821
A22: Y1 | B22: =Sheet1!B78 -> -5.096889304 | D22: =B22*25.4 -> -129.4609883
C24: Downstream | E24: (PM 2) | G24: Checks
A25: TB | B25: X (in) | C25: Y (in) | D25: X (mm) | E25: Y (mm) | G25: X (mm) | H25: Y (mm)
A26: Y1 | B26: =Sheet1!B87 -> -5.099889304 | C26: =Sheet1!A128 -> -0.007 | D26: =B26*25.4 -> -129.5371883 | E26: =C26*25.4 -> -0.1778 | G26: =H13-D27 -> 156.8958 | H26: =C13-E26 -> 88.4936
A27: X1 | B27: =Sheet1!A87 -> -1.501889304 | C27: =Sheet1!B128 -> -3.607 | D27: =B27*25.4 -> -38.14798832 | E27: =C27*25.4 -> -91.6178
A28: Y2 | B28: =Sheet1!C87 -> -5.098889304 | C28: \ | D28: =B28*25.4 -> -129.5117883
B33: Probe | F33: Flats
B35: X (in) | C35: X (mm) | F35: Y(in) | G35: Y(mm)
B36: =Sheet1!C141 -> -5.066 | C36: =B36*25.4 -> -128.6764 | E36: US + | F36: =Sheet1!A197 -> 1.704 | G36: =F36*25.4 -> 43.2816
E37: US - | F37: =Sheet1!B197 -> 1.703 | G37: =F37*25.4 -> 43.2562
E38: DS + | F38: =Sheet1!C197 -> 1.709 | G38: =F38*25.4 -> 43.4086
C39: Top of Gage Block | E39: DS - | F39: =Sheet1!D197 -> 1.708 | G39: =F39*25.4 -> 43.3832
B41: Y (in) | C41: Y (mm)
B42: =Sheet1!A139 -> -4.412 | C42: =B42*25.4 -> -112.0648

Sheet Sheet3
A2: Undulator | C2: 13
A3: Date | C3: =Sheet1!B6 -> 2016-01-08
A4: Crew | C4: MR,BR
C7: Undulator Values
A9: TB | B9: X (in) | C9: Y (in) | D9: X (mm) | E9: Y (mm) | G9: Probe
A10: 1 | B10: =Sheet1!A28 -> -5.103889304 | C10: =Sheet1!A169 -> 3.474 | D10: =SUM(B10*25.4) -> -129.6387883 | E10: =SUM(C10*25.4) -> 88.2396
A11: 2 | B11: =Sheet1!B28 -> -5.099889304 | C11: =Sheet1!B169 -> 3.475 | D11: =SUM(B11*25.4) -> -129.5371883 | E11: =SUM(C11*25.4) -> 88.265 | G11: X (in) | H11: X (mm)
A12: 3 | B12: =Sheet1!C28 -> -5.105889304 | C12: =Sheet1!C169 -> 3.474 | D12: -129.6895883 | E12: 88.2396 | G12: =Sheet1!C141 -> -5.066 | H12: =SUM(G12*25.4) -> -128.6764
A13: 4 | B13: =Sheet1!D28 -> -5.110889304 | C13: =Sheet1!D169 -> 3.477 | D13: -129.8165883 | E13: 88.3158
A14: 5 | B14: =Sheet1!A35 -> 4.681110696 | C14: =Sheet1!A177 -> -3.605 | D14: 118.9002117 | E14: -91.567
A15: 6 | B15: =Sheet1!B35 -> 4.678110696 | C15: =Sheet1!B177 -> -3.611 | D15: 118.8240117 | E15: -91.7194 | G15: Top of Gage Block
A16: 7 | B16: =Sheet1!C35 -> 4.677110696 | C16: =Sheet1!C177 -> -3.608 | D16: 118.7986117 | E16: -91.6432
A17: 8 | B17: =Sheet1!D35 -> 4.675110696 | C17: =Sheet1!D177 -> -3.61 | D17: 118.7478117 | E17: -91.694 | G17: Y (in) | H17: Y (mm)
G18: =Sheet1!A139 -> -4.412 | H18: =SUM(G18*25.4) -> -112.0648
C19: Undulator PM Values
C21: Upstream | E21: (PM 3)
A22: TB | B22: X (in) | C22: Y (in) | D22: X (mm) | E22: Y (mm) | G22: Flats
A23: Y2 | B23: =Sheet1!A78 -> -1.502889304 | C23: =Sheet1!C118 -> -0.015 | D23: =SUM(B23*25.4) -> -38.17338832 | E23: =SUM(C23*25.4) -> -0.381
A24: X1 | B24: =Sheet1!A78 -> -1.502889304 | C24: =Sheet1!D118 -> -3.615 | D24: =SUM(B24*25.4) -> -38.17338832 | E24: =SUM(C24*25.4) -> -91.821 | H24: Y(in) | I24: Y(mm)
A25: Y1 | B25: =Sheet1!B78 -> -5.096889304 | D25: =SUM(B25*25.4) -> -129.4609883 | G25: US + | H25: =Sheet1!A197 -> 1.704 | I25: =SUM(H25*25.4) -> 43.2816
G26: US - | H26: =Sheet1!B197 -> 1.703 | I26: =SUM(H26*25.4) -> 43.2562
C27: Downstream | E27: (PM 2) | G27: DS + | H27: =Sheet1!C197 -> 1.709 | I27: =SUM(H27*25.4) -> 43.4086
A28: TB | B28: X (in) | C28: Y (in) | D28: X (mm) | E28: Y (mm) | G28: DS - | H28: =Sheet1!D197 -> 1.708 | I28: =SUM(H28*25.4) -> 43.3832
A29: Y1 | B29: =Sheet1!B87 -> -5.099889304 | C29: =Sheet1!A128 -> -0.007 | D29: =SUM(B29*25.4) -> -129.5371883 | E29: =SUM(C29*25.4) -> -0.1778
A30: X1 | B30: =Sheet1!A87 -> -1.501889304 | C30: =Sheet1!B128 -> -3.607 | D30: =SUM(B30*25.4) -> -38.14798832 | E30: =SUM(C30*25.4) -> -91.6178
A31: Y2 | B31: =Sheet1!C87 -> -5.098889304 | D31: =SUM(B31*25.4) -> -129.5117883
C33: Ref. PM Values
C35: Upstream | E35: (PM 4)
A36: TB | B36: X (in) | C36: Y (in) | D36: X (mm) | E36: Y (mm)
A37: Y1 | B37: =Sheet1!B68 -> -3.601889304 | C37: =Sheet1!A118 -> 0 | D37: =SUM(B37*25.4) -> -91.48798832 | E37: =SUM(C37*25.4) -> 0
A38: X1 | B38: 0 | C38: =Sheet1!B118 -> -3.604 | D38: 0 | E38: =SUM(C38*25.4) -> -91.5416
A39: Y2 | B39: =Sheet1!C68 -> -3.602889304 | D39: =SUM(B39*25.4) -> -91.51338832
C41: Downstream | E41: (PM 1)
A42: TB | B42: X (in) | C42: Y (in) | D42: X (mm) | E42: Y (mm)
A43: Y1 | B43: =Sheet1!B96 -> -3.600889304 | C43: =Sheet1!C128 -> 0 | D43: =SUM(B43*25.4) -> -91.46258832 | E43: =SUM(C43*25.4) -> 0
A44: X1 | B44: 0 | C44: =Sheet1!D128 -> -3.604 | D44: 0 | E44: =SUM(C44*25.4) -> -91.5416
A45: Y2 | B45: =Sheet1!C96 -> -3.599889304 | D45: =SUM(B45*25.4) -> -91.43718832
C47: Ref. Block
A48: TB | B48: X (in) | C48: Y (in) | D48: X (mm) | E48: Y (mm)
A49: A | B49: =Sheet1!A45 -> 28.7431107 | C49: =Sheet1!A188 ->  | D49: =SUM(B49*25.4) -> 730.0750117 | E49: =SUM(C49*25.4) -> 
A50: B | B50: =Sheet1!B45 -> 28.7431107 | D50: =SUM(B50*25.4) -> 730.0750117
A51: C | B51: =Sheet1!C45 -> 28.7431107 | C51: =Sheet1!C188 ->  | D51: =SUM(B51*25.4) -> 730.0750117 | E51: =SUM(C51*25.4) -> 
A52: D | B52: =Sheet1!D45 -> 28.7431107 | C52: =Sheet1!D188 ->  | D52: =SUM(B52*25.4) -> 730.0750117 | E52: =SUM(C52*25.4) -> 
